Cogmind - Beta 13 @@@ ROGUE MODE // 2024.04.14 @ 22:03:31 Player: Spoodle Result: Destroyed by as-49157 with Assembled Rifle Performance ------------- Evolutions (0) 0 Regions Visited (4) 800 Robots Destroyed (6) 30 Value Destroyed (65) 65 Prototype IDs (23) 460 Alien Tech Used (0) 0 Bonus (300) 300 TOTAL SCORE: 1655 Bonus ------- Aligned with FarCom 300 Cogmind --------- Core Integrity 0/250 Matter 300/300 Energy 99/100 System Corruption 0% Temperature Cool (0) Movement Core (50) Location -9/Mines Parts ------- > --- POWER (1) -------- (None) > --- PROPULSION (2) --- (None) > --- UTILITY (2) ------ (None) > --- WEAPON (2) ------- (None) > --- INVENTORY (5) ---- Wheel High-capacity Battery (250) Trap Reconfigurator EM Pulse Gun Assault Rifle Peak State ------------ > --- POWER ------------ Ion Engine > --- PROPULSION ------- Wheel Wheel > --- UTILITY ---------- Small Storage Unit Targeting Computer > --- WEAPON ----------- Beam Cannon Assault Rifle > --- INVENTORY -------- Ion Engine Light Treads Light Treads Compact Wheel High-capacity Battery Trap Reconfigurator EM Pulse Gun Assault Rifle [Rating: 8] Favorites ----------- Power Ion Engine Engine Ion Engine Propulsion Wheel Treads Light Treads Wheel Wheel Utility Small Storage Unit Device Seismic Detector Storage Small Storage Unit Processor Targeting Computer Weapon Assault Rifle Energy Cannon Beam Cannon Ballistic Gun Assault Rifle Build | -11 -10 -10 -10 -9 ------- Run | Yrd Mat Min Exi Min Slots Evolved . | . . . . . Power . | . . . . . Propulsion . | . . . . . Utility . | . . . . . Weapon . | . . . . . Parts Attached 14 | 7 4 . . 3 Power 2 | 1 . . . 1 Engine 2 | 1 . . . 1 Core . | . . . . . Reactor . | . . . . . Propulsion 6 | 2 2 . . 2 Treads 2 | . . . . 2 Leg . | . . . . . Wheel 4 | 2 2 . . . Hover . | . . . . . Flight . | . . . . . Utility 3 | 2 1 . . . Device 1 | 1 . . . . Storage 1 | 1 . . . . Processor 1 | . 1 . . . Hackware . | . . . . . Protection . | . . . . . Artifact . | . . . . . Weapon 3 | 2 1 . . . Energy Gun . | . . . . . Energy Cannon 1 | . 1 . . . Ballistic Gun 2 | 2 . . . . Ballistic Cannon . | . . . . . Launcher . | . . . . . Special Weapon . | . . . . . Impact Weapon . | . . . . . Slashing Weapon . | . . . . . Piercing Weapon . | . . . . . Special Melee Weapon . | . . . . . Unidentified Prototypes . | . . . . . Parts Lost 2 | . . . . 2 Power . | . . . . . Propulsion 1 | . . . . 1 Utility . | . . . . . Weapon 1 | . . . . 1 Highest Loss Streak 2 | . . . . 2 To Critical Strikes . | . . . . . Average Slot Usage (%) 100 | . 100 100 100 100 Engine 14 | . 14 14 14 14 Wheel 27 | . 28 28 28 26 Storage 14 | . 14 14 14 14 Processor 13 | . 13 14 14 14 Energy Cannon 13 | . 11 14 14 14 Ballistic Gun 14 | . 16 14 14 14 Naked Turns 5 | . . . . 5 Heaviest Build 15 | 15 15 15 15 15 Greatest Support 40 | 32 32 20 20 40 Greatest Overweight (x) . | . . . . . Average Overweight (x) . | . . . . . Largest Inventory Capacity 8 | 8 8 8 8 8 Average Capacity 7 | 7 8 8 8 7 Most Carried 8 | 8 8 8 8 8 Average Carried 7 | 6 7 8 7 7 Final Capacity 8 | 8 8 8 8 5 Final Carried 8 | 8 8 8 8 5 Class Distribution -------------------- 100% | Mutant Dominant Class ---------------- Mutant | -10/Materials Mutant | -10/Mines Mutant | -10/Exiles Mutant | -9/Mines Resources | -11 -10 -10 -10 -9 ----------- Run | Yrd Mat Min Exi Min Matter Collected 421 | 340 49 6 . 26 Remotely . | . . . . . Salvage Created 189 | 119 70 . . . Parts 15 | 10 5 . . . Haulers Intercepted . | . . . . . Recyclers Shooed 1 | 1 . . . . Parts Field Recycled . | . . . . . Retrieved Matter . | . . . . . Parts Self-Destructed . | . . . . . Prevented . | . . . . . Kills | -11 -10 -10 -10 -9 ------- Run | Yrd Mat Min Exi Min Combat Hostiles Destroyed 1 | . 1 . . . Cannons 1 | . 1 . . . Classes Destroyed 5 | 3 2 . . . Worker 2 | 2 . . . . Tunneler 1 | 1 . . . . Recycler 1 | 1 . . . . Watcher 1 | . 1 . . . Grunt 1 | . 1 . . . Best Kill Streak 2 | 2 1 . . . Combat Bots Only 1 | . 1 . . . Max Kills in Single Turn 1 | 1 1 . . . Gunslinging . | . . . . . Exploded . | . . . . . Melee . | . . . . . Uniques/NPCs Destroyed . | . . . . . Combat | -11 -10 -10 -10 -9 -------- Run | Yrd Mat Min Exi Min Hostile Shots Fired 60 | . 4 . . 56 Missed 20 | . 2 . . 18 Damage Taken 687 | . 21 . . 666 Core 252 | . 11 . . 241 Absorbed by Shields . | . . . . . Core Remaining (%) 100 | 100 . . . . Volleys Fired 17 | 10 5 . . 2 Largest 2 | 2 2 . . 2 Hottest 80 | 40 80 . . 80 Shots Fired 34 | 20 10 . . 4 Gun 27 | 20 5 . . 2 Cannon 7 | . 5 . . 2 Launcher . | . . . . . Special . | . . . . . Kinetic 27 | 20 5 . . 2 Thermal 7 | . 5 . . 2 Explosive . | . . . . . Electromagnetic . | . . . . . Robot Hit Streak 8 | 8 3 . . 2 Robot Miss Streak 2 | 2 1 . . 1 Penetration Max . | . . . . . Secondary Targets . | . . . . . Shots Hit Robots 20 | 13 5 . . 2 Core Hits 7 | 4 2 . . 1 Critical Kills . | . . . . . Critical Parts Destroyed . | . . . . . Critical Strikes . | . . . . . Melee Attacks . | . . . . . Impact . | . . . . . Slashing . | . . . . . Piercing . | . . . . . Sneak Attacks . | . . . . . Combat Hostiles . | . . . . . Follow-up Attacks . | . . . . . Damage Inflicted 292 | 184 77 . . 31 Guns 223 | 184 25 . . 14 Cannons 69 | . 52 . . 17 Explosions . | . . . . . Melee . | . . . . . Ramming . | . . . . . Kinetic 223 | 184 25 . . 14 Thermal 69 | . 52 . . 17 Explosive . | . . . . . Electromagnetic . | . . . . . Impact . | . . . . . Slashing . | . . . . . Piercing . | . . . . . Highest Corruption . | . . . . . Average Corruption . | . . . . . Corruption Purged . | . . . . . Corruption Blocked . | . . . . . Overload Shots . | . . . . . Overflow Damage . | . . . . . Projectiles . | . . . . . Explosions . | . . . . . Melee . | . . . . . Knockbacks . | . . . . . Impact . | . . . . . Kinetic . | . . . . . Secondary . | . . . . . Self-Inflicted Damage . | . . . . . Shots . | . . . . . Rammed . | . . . . . Targets Rammed . | . . . . . Kicked . | . . . . . Crushed . | . . . . . Highest Temperature 56 | 6 48 . . 56 Average Temperature 22 | 6 20 . . 31 Received Heat Transfer 52 | . 12 . . 40 Siege Activations . | . . . . . Robots Corrupted . | . . . . . Combat Hostiles . | . . . . . Parts Fried . | . . . . . Impact Corruptions . | . . . . . Robots Melted . | . . . . . Combat Hostiles . | . . . . . Parts Melted . | . . . . . Heat Transferred 148 | . 111 . . 37 Parts Sabotaged . | . . . . . Parts Stolen . | . . . . . Parts Stripped . | . . . . . Power Chain Reactions . | . . . . . Alert | -11 -10 -10 -10 -9 ------- Run | Yrd Mat Min Exi Min Peak Influence 77 | 20 77 30 . . Initial 30 | . 13 30 . . Average 11 | 5 23 30 . . Maximum Alert Level . | . . . . . Low Security (%) 100 | 100 100 100 . 100 Level 1 . | . . . . . Level 2 . | . . . . . Level 3 . | . . . . . Level 4 . | . . . . . Level 5 . | . . . . . High Security . | . . . . . Max Security . | . . . . . Squads Dispatched 1 | . . 1 . . Investigation . | . . . . . Extermination . | . . . . . Reinforcement . | . . . . . Assault 1 | . . 1 . . Garrison . | . . . . . Intercept . | . . . . . Searches Triggered . | . . . . . Construction Impeded . | . . . . . Haulers Reinforced . | . . . . . Active Scanning Responses . | . . . . . Cargo Convoy Interrupts . | . . . . . Stealth | -11 -10 -10 -10 -9 --------- Run | Yrd Mat Min Exi Min Distress Signals . | . . . . . Communications Jammed . | . . . . . Distress Signals . | . . . . . Times Spotted 19 | . 3 . . 16 Peak Tracking Total 16 | . 2 . . 16 Tactical Retreats 2 | . 1 . . 1 Traps | -11 -10 -10 -10 -9 ------- Run | Yrd Mat Min Exi Min Traps Triggered . | . . . . . Indirectly . | . . . . . Trap Hack Attempts . | . . . . . Triggered . | . . . . . Disarmed . | . . . . . Reprogrammed . | . . . . . Reused . | . . . . . Traps Extracted . | . . . . . Installed . | . . . . . Triggered . | . . . . . Machines | -11 -10 -10 -10 -9 ---------- Run | Yrd Mat Min Exi Min Machines Disabled . | . . . . . Max in Single Turn . | . . . . . Machines Repaired . | . . . . . Machines Dismantled . | . . . . . Machines Sabotaged . | . . . . . Overloaded Fab Kills . | . . . . . Hacking | -11 -10 -10 -10 -9 --------- Run | Yrd Mat Min Exi Min Machines Accessed 4 | . 3 . 1 . Terminals 3 | . 3 . . . Fabricators . | . . . . . Repair Stations . | . . . . . Recycling Units . | . . . . . Scanalyzers . | . . . . . Garrison Access . | . . . . . Total Hacks 10 | . 9 . 1 . Successful 6 | . 5 . 1 . Failed 4 | . 4 . . . Catastrophic . | . . . . . Database Lockouts . | . . . . . Manual 1 | . . . 1 . Terminals 9 | . 9 . . . Fabricators . | . . . . . Repair Stations . | . . . . . Recycling Units . | . . . . . Scanalyzers . | . . . . . Garrison Access . | . . . . . Terminal Hacks 6 | . 5 . 1 . Branch Access Points 1 | . 1 . . . Scanalyzer Index 1 | . 1 . . . Locate Traps 1 | . 1 . . . Dispatch Records 1 | . 1 . . . Zone Layout 1 | . 1 . . . Derelict Proto ID Bank 1 | . . . 1 . Fabricator Hacks . | . . . . . Repair Station Hacks . | . . . . . Recycling Unit Hacks . | . . . . . Scanalyzer . | . . . . . Garrison Access Hacks . | . . . . . Unauthorized Hacks . | . . . . . Terminals . | . . . . . Fabricators . | . . . . . Repair Stations . | . . . . . Recycling Units . | . . . . . Scanalyzers . | . . . . . Garrison Access . | . . . . . Data Cores Recovered . | . . . . . Used . | . . . . . Hacking Detections 2 | . 2 . . . Full Trace Events 1 | . 1 . . . Feedback Events . | . . . . . Feedback Blocked . | . . . . . Robot Schematics Acquired . | . . . . . Robots Built . | . . . . . Authchips . | . . . . . Time . | . . . . . Total Robot Build Rating . | . . . . . Part Schematics Acquired . | . . . . . Parts Built . | . . . . . Authchips . | . . . . . Time . | . . . . . Total Part Build Rating . | . . . . . Parts Repaired . | . . . . . Time . | . . . . . Parts Recycled . | . . . . . Recycled Matter . | . . . . . Retrieved Matter . | . . . . . Retrieved Components . | . . . . . Parts Scanalyzed . | . . . . . Part Schematics Acquired . | . . . . . Parts Damaged . | . . . . . Bothacking | -11 -10 -10 -10 -9 ------------ Run | Yrd Mat Min Exi Min Used RIF Installer . | . . . . . Robots Hacked . | . . . . . Non-combat . | . . . . . Combat . | . . . . . Robot Hacks Applied . | . . . . . Relay Couplers Released . | . . . . . Fabnet Peak Effective % . | . . . . . Robots Rewired . | . . . . . Allies Hacked . | . . . . . Hacks Repelled . | . . . . . Allies | -11 -10 -10 -10 -9 -------- Run | Yrd Mat Min Exi Min Total Allies . | . . . . . Largest Group . | . . . . . Highest-Rated Group . | . . . . . Highest-Rated Ally . | . . . . . Total Orders . | . . . . . Ally Attacks . | . . . . . Total Damage . | . . . . . Kills . | . . . . . Allies Corrupted . | . . . . . Allies Melted . | . . . . . Intel | -11 -10 -10 -10 -9 ------- Run | Yrd Mat Min Exi Min Robot Analysis Total . | . . . . . Derelict Logs Recovered 2 | . . 2 . . Drone Launches . | . . . . . Drone Recoveries . | . . . . . Exploration | -11 -10 -10 -10 -9 ------------- Run | Yrd Mat Min Exi Min Turns Passed 736 | 134 167 56 168 211 Spaces Moved 766 | 81 159 70 209 247 Core 17 | 7 . . . 10 Treads 2 | . . . . 2 Legs . | . . . . . Wheels 747 | 74 159 70 209 235 Hover . | . . . . . Flight . | . . . . . Fastest Speed 50 | 50 80 80 80 50 Average Speed 81 | 95 80 80 80 79 Slowest Speed 160 | 100 100 80 80 160 Overloaded Moves . | . . . . . Propulsion Burnouts . | . . . . . Robots Hopped . | . . . . . Cave-ins Triggered . | . . . . . Exploration Rate (%) 32 | 4 29 17 60 51 Regions Visited 4 Branch Regions 3 Pre-discovered Areas 1 | . . 1 . . Known Exits Taken 1 | . 1 . . . Unknown Exits Taken 3 | 1 . 1 1 . Scrap Searched 2 | . . . . 2 Spaces Dug . | . . . . . Terrain Destroyed . | . . . . . Melee . | . . . . . Projectile . | . . . . . AOE . | . . . . . Terrain Rammed . | . . . . . Walls Destroyed . | . . . . . Machines Disabled . | . . . . . Actions | -11 -10 -10 -10 -9 --------- Run | Yrd Mat Min Exi Min Total 840 | 117 188 69 210 256 Wait 20 | 2 14 . . 4 Move 762 | 80 158 69 208 247 Hop . | . . . . . Pick Up 19 | 15 3 . 1 . Fast Attach 4 | 3 1 . . . Attach 4 | 4 . . . . Detach . | . . . . . Swap 6 | . 3 . . 3 Drop 8 | 3 4 . 1 . Fire 17 | 10 5 . . 2 Melee . | . . . . . Ram . | . . . . . Kick . | . . . . . Crush . | . . . . . Escape Stasis . | . . . . . Rewire . | . . . . . Trap . | . . . . . Miscellaneous . | . . . . . Route ------- -11/Scrapyard -10/Materials (discovered 2 exits: *Min x2) -10/Mines -10/Exiles -9/Mines History --------- Turn | Location | Event 22 | -11/Scrapyard | Discovered new exit (range 16) 135 | -11/Scrapyard | Entered Materials 273 | -10/Materials | Identified exit to Mines 302 | -10/Materials | Entered Mines 303 | -10/Mines | Met a Derelict testing a Signal Generator 317 | -10/Mines | Build established: Mutant 331 | -10/Mines | Learned Materials trap positions 347 | -10/Mines | Learned location of Mines (-9) 355 | -10/Mines | Deemed a non-threat by the Exiles lab entrance 355 | -10/Mines | Discovered new exit (range 5) 358 | -10/Mines | Entered Exiles 378 | -10/Exiles | Met 8R-AWN 391 | -10/Exiles | Met EX-HEX 413 | -10/Exiles | Met EX-BIN 423 | -10/Exiles | Aligned with FarCom system 424 | -10/Exiles | Given EX-Vault access code 443 | -10/Exiles | Opened EX-Vault 448 | -10/Exiles | Found Trap Reconfigurator 465 | -10/Exiles | Warned to stay clear of 0b10 Research branches 490 | -10/Exiles | Met EX-DEC 520 | -10/Exiles | Discovered new exit (range 10) 526 | -10/Exiles | Left Exiles lab with Trap Reconfigurator 526 | -10/Exiles | Entered Mines 692 | -9/Mines | Assembled infested the area 697 | -9/Mines | Assisted by a Guerilla fighting off Assembled 732 | -9/Mines | Released all parts (5) 734 | -9/Mines | Core integrity fell below 50% 737 | -9/Mines | Core integrity fell below 20% 737 | -9/Mines | Destroyed by as-49157 with Assembled Rifle Last Messages --------------- 00692_ ALERT: Infestation in the mines, dispatching Demolisher response squad. 00697_ A derelict emerges from the shadows: "You need to get out of here! I've been tracking a group of Assembled to figure out where they're coming from, and they're closing on this area, come on!" 00702_ K-01 Serf collects debris. 00717_ HV Slug penetrates Wall. 00719_ NV-FXI(h) destroyed. 00722_ K-01 Serf destroyed. 00725_ as-36739 destroyed. 00730_ Lgt. Treads destroyed. 00730_ Beam Cannon destroyed. 00731_ as-27775 destroyed. 00732_ Released Lgt. Treads. 00732_ Released Assault Rifle. 00732_ Released Sml. Storage Unit. 00732_ Released Targeting Computer. 00732_ Released Ion Engine. 00732_ Acquired 14 matter. 00733_ Acquired 6 matter. Map ----- +----------------------------------------------------+ | ?????????????????????????????????????????????????? | | ?????????????????????????????????????????????????? | | ?????????????????????????????????????????????????? | | ?????????????????????????????????????????????????? | | ?????????????????????????????????????????????????? | | ?????????????????????????????????????????????????? | | ???###???????????????????????????????????????????? | | #### ##?????????????????????????????????????????? | | # #?????????????????????????????????????????? | | #?????????????????????????????????????????? | | ##???????####?????????????????????????????? | | # ######### ##????????????????????????????? | | ?# ## ##???????????????????????????? | | ?# ##???????????###????????????? | | ?# ## #??????????## ##??????????? | | ?# ### #### = ##????#???## ##???####??? | | ?## #??## ##??# != ##??## ### ##### ##?? | | ??###????####???# [=* #??# ## #?? | | ???????????###### * * #??# #?? | | ??????????## = ##??# ##? | | ??????????# a ##?# """ #? | | ??????????# a ### """ #? | | ??????????# aaa #?# """ ### ## | | ??????????## aaa #??# ##?## # | | ???????????### a % ##??# ##???# # | | ?????????????## !%aa@##??## #????## # | | ??????????????## ##a ##??## #?????# #### | | ???????????????## ###; % #???#### #?????# #??? | | ????????????????#####?## ;#?????# #?????# #??? | | ?????????????????????## %a ##?????# #?????# #### | | ????????????????????## ;#??????# #?????# | | ??????????? ???????# % % ;#??????# #?????#### | | ???????????# ##????# % ##??????# #?????????? | | ???????????# #???## ##?????# #??????????? | | ????????????# ##??## ####### !#??????????? | | ???????????## #??# C=%#??????????? | | ??????????## ### [*#??????????? | | ??????????# ############??????????? | | ??????????# ##????????????????????? | | ???????????# ## ## = #????????????????????? | | ????????????????##?## a #????????????????????? | | ??????????????????## #????????????????????? | | ?????????????????## #????????????????????? | | ????????????????## #????????????????????? | | ????????????????# #????????????????????? | | ????????????????# ##????????????????????? | | ????????????????# #?????????????????????? | | ????????????????## #?????????????????????? | | ?????????????????## ##?????????????????????? | | ??????????????????### ####??????????????????????? | +----------------------------------------------------+ Best States ------------- Heat Dissipation 25 Energy Generation 10 Energy Capacity 250 Matter Stores 300 Matter Capacity 300 Sight Range 16 Terrain Scan Density 10 Evasion (%) 50 Targeting Accuracy 5 Recoil Reduction 2 Item Schematics ----------------- None Robot Schematics ------------------ None Fabricated ------------ Nothing Alien Tech Used ----------------- None Achievements -------------- None Challenges ------------ None Game ------ Seed PowerKineticBarrier Manual? 0 Play Time 00:14:02 Cumulative 33.2 hours Start 2024.04.14 @ 21:51:15 End 2024.04.14 @ 22:03:31 Sessions 1 Manual Loads 0 Difficulty Rogue Special Mode None Game No. 21 Rogue 21 Adventurer 0 Explorer 0 Win Type - Total 0 Types 0/0/0/0/0/0/0/0/0 Lore% 27 Gallery% 33 Achievement% 26 Wizard Run 0 Options --------- Layout 0 ASCII 0 Keyboard 0 Movement Mouse Keybinds 0 Fullscreen 2 Font 18/SmallcapsGlow Map View 76x50 Zoom Use 0% Tactical HUD 1 Map Filters NONE Filters NONE Steam 1 RUN: 6634cee7-af60-45f9-a0e3-71c96752064e